bitfinex/quotes_BTCUSD_20250830
["timestamp","ask_amount","ask_price","bid_price","bid_amount"]
[1756519099618,1.37604513,107830.0,107820.0,1.65512573]
[1756519099820,1.37604513,107830.0,107820.0,2.52516391]
[1756519100027,0.81844592,107830.0,107820.0,2.52516391]
[1756519100424,0.81844592,107830.0,107820.0,2.52416391]
[1756519100627,0.80994094,107830.0,107820.0,2.52416391]
[1756519100830,0.80994094,107830.0,107820.0,2.52616391]
[1756519101148,0.80994094,107830.0,107820.0,2.52416391]
[1756519101354,0.80994094,107830.0,107820.0,2.10731321]
[1756519101563,0.80994094,107830.0,107820.0,2.11331321]
[1756519102219,0.80994094,107830.0,107820.0,1.91539321]
[1756519102376,0.80994094,107830.0,107820.0,2.11371321]
[1756519102603,0.80994094,107830.0,107820.0,1.66539321]
[1756519102780,0.80994094,107830.0,107820.0,0.72770548]
[1756519102977,0.80994094,107830.0,107820.0,1.33245973]
[1756519103432,0.80994094,107830.0,107820.0,1.38245973]
[1756519104011,0.80994094,107830.0,107820.0,1.18433973]
[1756519104207,0.80994094,107830.0,107820.0,1.37601973]
[1756519104629,0.80994094,107830.0,107820.0,1.83420721]
[1756519104828,0.80994094,107830.0,107820.0,1.88420721]
[1756519105286,0.80994094,107830.0,107820.0,1.87900721]
[1756519105455,0.80994094,107830.0,107820.0,1.88300721]
[1756519106060,0.80994094,107830.0,107820.0,1.88288721]
[1756519106332,0.80994094,107830.0,107820.0,1.88256721]
[1756519106478,0.80994094,107830.0,107820.0,1.68552721]
[1756519106674,0.80994094,107830.0,107820.0,1.88256721]
[1756519106936,0.80994094,107830.0,107820.0,1.88248721]
[1756519107223,0.80994094,107830.0,107820.0,1.42929973]
[1756519107439,0.80994094,107830.0,107820.0,1.88248721]
[1756519108380,0.80994094,107830.0,107820.0,1.63552721]
[1756519108585,0.81206094,107830.0,107820.0,1.88236721]
[1756519109011,0.80994094,107830.0,107820.0,1.88236721]
[1756519112707,0.80994094,107830.0,107820.0,2.15146721]
[1756519112944,0.80994094,107830.0,107820.0,1.69827973]
[1756519113096,0.80994094,107830.0,107820.0,2.15146721]
[1756519113313,0.80994094,107830.0,107820.0,2.24905721]
[1756519114742,0.81690671,107830.0,107820.0,2.05221721]
[1756519114946,0.81690671,107830.0,107820.0,2.14646721]
[1756519115266,0.81690671,107830.0,107820.0,2.14602721]
[1756519115724,0.81690671,107830.0,107820.0,1.10577948]
[1756519115931,0.82001671,107830.0,107820.0,1.27705066]
[1756519116733,0.82001671,107830.0,107820.0,1.10378948]
[1756519117007,0.82001671,107830.0,107820.0,0.80770948]
[1756519118604,0.82001671,107830.0,107820.0,0.53860948]
[1756519119239,0.81690671,107830.0,107820.0,0.54071948]
[1756519119442,0.82001671,107830.0,107820.0,0.53860948]
[1756519120347,0.81690671,107830.0,107820.0,0.54071948]
[1756519120854,0.82001671,107830.0,107820.0,0.53860948]
[1756519122486,0.82001671,107830.0,107820.0,0.34468948]
[1756519122687,0.82001671,107830.0,107820.0,0.53748948]
[1756519122892,0.82001671,107830.0,107820.0,0.34468948]
[1756519123250,0.82001671,107830.0,107820.0,0.53720948]
[1756519124873,0.82001671,107830.0,107820.0,0.53320948]
[1756519125031,0.82001671,107830.0,107820.0,0.53520948]
[1756519125704,0.81690671,107830.0,107820.0,0.53659948]
[1756519125918,0.81690671,107830.0,107820.0,0.53448948]
[1756519125919,0.82001671,107830.0,107820.0,0.53448948]
[1756519126105,0.82001671,107830.0,107820.0,0.53424948]
[1756519132565,0.82001671,107830.0,107820.0,0.34268948]
[1756519132816,0.82001671,107830.0,107820.0,0.53268948]
[1756519133028,0.81478671,107830.0,107820.0,0.97302115]
[1756519133739,0.81478671,107830.0,107820.0,0.53769948]
[1756519134064,0.81478671,107830.0,107820.0,0.97302115]
[1756519134261,0.81478671,107830.0,107820.0,1.03964031]
[1756519135284,0.81478671,107830.0,107820.0,0.60431864]
[1756519135482,0.81478671,107830.0,107820.0,1.03964031]
[1756519135700,0.81478671,107830.0,107820.0,0.60431864]
[1756519137334,0.81693671,107830.0,107820.0,0.60299864]
[1756519138444,0.81478671,107830.0,107820.0,0.60299864]
[1756519138645,0.81693671,107830.0,107820.0,0.60299864]
[1756519139464,0.82014671,107830.0,107820.0,0.2238143]
[1756519139666,1.00562384,107830.0,107820.0,0.20287548]
[1756519139869,2.28854621,107830.0,107820.0,0.002]
[1756519140533,1.37349884,107830.0,107820.0,0.002]
[1756519140743,0.18554596,107790.0,107780.0,0.07132]
[1756519141077,0.62086763,107790.0,107780.0,0.27424]
[1756519141287,1.0615193,107790.0,107780.0,0.27424]
[1756519141496,0.672765,107790.0,107780.0,0.27424]
[1756519141699,0.672765,107790.0,107780.0,0.07132]
[1756519141700,0.68905216,107790.0,107780.0,0.07132]
[1756519142033,0.68909982,107790.0,107780.0,0.27392]
[1756519142799,0.22365339,107790.0,107780.0,0.27392]
[1756519143076,0.67765843,107790.0,107780.0,0.27392]
[1756519143433,0.22047339,107790.0,107780.0,0.27392]
[1756519144023,0.03492743,107790.0,107780.0,0.46449318]
[1756519144262,0.22047339,107790.0,107780.0,0.27392]
[1756519144611,0.22365339,107790.0,107780.0,0.07132]
[1756519144729,0.67765843,107790.0,107780.0,0.27344]
[1756519145646,0.67765843,107790.0,107780.0,0.36173632]
[1756519146655,0.22365339,107790.0,107780.0,0.36173632]
[1756519146858,0.22047339,107790.0,107780.0,0.36173632]
[1756519147506,0.03492743,107790.0,107780.0,0.5493395]
[1756519147708,0.03277743,107790.0,107780.0,0.5523095]
[1756519148355,0.03277743,107790.0,107780.0,0.57324832]
[1756519148624,0.00489343,107790.0,107780.0,1.02725336]
[1756519149648,0.00489343,107790.0,107780.0,0.57324832]
[1756519149856,0.00489343,107790.0,107780.0,1.02725336]
[1756519151331,0.00489343,107790.0,107780.0,0.57324832]
[1756519151493,0.00489343,107790.0,107780.0,1.02725336]
[1756519152374,0.00489343,107790.0,107780.0,0.57324832]
[1756519152588,0.00489343,107790.0,107780.0,1.02725336]
[1756519152787,0.00489343,107790.0,107780.0,0.57324832]
[1756519153951,0.19043939,107790.0,107780.0,0.18556514]
[1756519154155,0.19256939,107790.0,107780.0,0.38223514]
[1756519154597,0.19256939,107790.0,107780.0,0.38520514]
[1756519154802,0.19256939,107790.0,107780.0,0.10600514]
[1756519155006,0.19256939,107790.0,107770.0,0.0002]
[1756519155204,1.43589053,107780.0,107770.0,0.0002]
[1756519155428,0.53196181,107780.0,107770.0,0.0002]
[1756519155682,0.18561484,107750.0,107740.0,0.205]
[1756519155883,0.64623851,107750.0,107740.0,0.205]
[1756519156089,0.18583484,107750.0,107740.0,0.205]
[1756519156262,0.1922324,107750.0,107740.0,0.205]
[1756519156465,0.2201284,107750.0,107740.0,0.205]
[1756519156866,0.03935933,107750.0,107740.0,0.21001]
[1756519157068,0.67489892,107750.0,107740.0,0.20547434]
[1756519157276,0.67489892,107750.0,107740.0,0.00047434]
[1756519157277,0.21857661,107750.0,107740.0,0.00047434]
[1756519157449,0.21857661,107750.0,107740.0,0.20535434]
[1756519157450,0.67258165,107750.0,107740.0,0.20535434]
[1756519157814,0.21857661,107750.0,107740.0,0.20535434]
[1756519158398,0.21870661,107750.0,107740.0,0.08877066]
[1756519158554,0.2249616,107750.0,107740.0,0.08877066]
[1756519159047,0.67896664,107750.0,107740.0,0.08877066]
[1756519159210,0.2249616,107750.0,107740.0,0.08877066]
[1756519159467,0.67896664,107750.0,107740.0,0.08877066]
[1756519159582,0.22011583,107750.0,107740.0,0.08877066]
[1756519159787,0.67412087,107750.0,107740.0,0.29461066]
[1756519160016,0.22011583,107750.0,107740.0,0.29461066]
[1756519160213,0.67412087,107750.0,107740.0,0.29461066]
[1756519160616,0.22011583,107750.0,107740.0,0.29461066]
[1756519160974,0.67412087,107750.0,107740.0,0.29461066]
[1756519161103,0.67412087,107750.0,107740.0,0.20631434]
[1756519161513,0.67425087,107750.0,107740.0,0.20631434]
[1756519161948,0.67412087,107750.0,107740.0,0.20591434]
[1756519162375,0.22011583,107750.0,107740.0,0.20591434]
[1756519162643,0.67390087,107750.0,107740.0,0.21120434]
[1756519162772,0.67412087,107750.0,107740.0,0.21120434]
[1756519162977,0.66773588,107750.0,107740.0,0.21120434]
[1756519163196,0.66773588,107750.0,107740.0,0.20591434]
[1756519163669,0.21373084,107750.0,107740.0,0.20591434]
[1756519163807,0.21373084,107750.0,107720.0,0.0352]
[1756519163808,0.1856493,107730.0,107720.0,0.0352]
[1756519164178,0.5259993,107730.0,107720.0,0.0352]
[1756519164739,1.43400938,107730.0,107720.0,0.0352]
[1756519165099,1.64460938,107730.0,107720.0,0.0352]
[1756519165309,1.43400938,107730.0,107720.0,0.0352]
[1756519165509,0.5259993,107730.0,107720.0,0.0352]
[1756519166155,0.98000434,107730.0,107720.0,0.0352]
[1756519166392,0.5259993,107730.0,107720.0,0.0352]
[1756519166601,0.98000434,107730.0,107720.0,0.0352]
[1756519166794,0.98200434,107730.0,107720.0,0.0352]
[1756519167192,0.5279993,107730.0,107720.0,0.0352]
[1756519167375,1.43600938,107730.0,107720.0,0.0352]
[1756519167572,0.52566654,107720.0,107700.0,0.00187025]
[1756519167777,6.75676627,107710.0,107700.0,0.00187025]
[1756519167973,2.01821288,107710.0,107700.0,0.00174025]
[1756519168236,2.01821288,107710.0,107680.0,0.0002]
[1756519168237,0.18571826,107690.0,107680.0,0.0002]
[1756519168455,1.70770466,107690.0,107680.0,0.0002]
[1756519168659,1.91926466,107690.0,107680.0,0.0002]
[1756519168806,1.03913458,107690.0,107680.0,0.0002]
[1756519169009,0.18575276,107670.0,107650.0,0.2662832]
[1756519169212,0.18575276,107670.0,107650.0,0.35457952]
[1756519169213,0.00231727,107660.0,107650.0,0.35457952]
[1756519169414,0.45632231,107660.0,107650.0,0.35672952]
[1756519169640,0.45400504,107660.0,107650.0,0.35457952]
[1756519169842,0.45400504,107660.0,107650.0,0.54036679]
[1756519170063,0.18575276,107670.0,107650.0,0.2684332]
[1756519170262,0.48424431,107660.0,107650.0,0.2684332]
[1756519170627,0.027922,107660.0,107650.0,0.54251679]
[1756519170868,0.34,107680.0,107670.0,0.18575276]
[1756519171081,0.45400504,107680.0,107670.0,0.19104276]
[1756519171464,0.71187466,107690.0,107670.0,0.19104276]
[1756519171694,0.66997382,107680.0,107660.0,0.21092]
[1756519171897,0.66997382,107680.0,107650.0,0.54651615]
[1756519171898,0.45400504,107670.0,107650.0,0.54965615]
[1756519172106,0.45632231,107660.0,107650.0,0.54965615]
[1756519172308,0.18575643,107670.0,107650.0,0.76252615]
[1756519172544,0.00231727,107660.0,107650.0,0.76252615]
[1756519172753,0.64209232,107660.0,107650.0,0.1917832]
[1756519172953,0.64209232,107660.0,107650.0,0.1927832]
[1756519172954,0.85025505,107660.0,107650.0,0.1927832]
[1756519173107,1.27855137,107660.0,107650.0,0.1927832]
[1756519173314,6.72869523,107660.0,107650.0,0.1917832]
[1756519173566,7.03893523,107660.0,107650.0,1e-08]
[1756519173923,0.54674335,107640.0,107630.0,9.558e-05]
[1756519174138,6.77872975,107640.0,107630.0,9.558e-05]
[1756519174338,7.04032438,107640.0,107630.0,1e-08]
[1756519174462,0.64676061,107630.0,107620.0,0.02746999]
[1756519174685,6.95158164,107630.0,107620.0,0.02327694]
[1756519174914,6.7076966,107630.0,107620.0,1e-08]
[1756519175117,7.18456095,107630.0,107620.0,1e-08]
[1756519175326,7.18479689,107630.0,107620.0,1e-08]
[1756519175525,0.64945348,107610.0,107600.0,0.18915237]
[1756519175731,6.90412891,107610.0,107600.0,0.18915237]
[1756519175949,0.6258736,107600.0,107590.0,0.0076658]
[1756519176315,0.6258736,107600.0,107540.0,0.12296668]
[1756519176316,0.18595543,107560.0,107540.0,0.12296668]
[1756519176518,0.80927728,107550.0,107540.0,0.12296668]
[1756519176695,0.99264001,107550.0,107540.0,0.12296668]
[1756519176930,1.44636056,107550.0,107540.0,0.12296668]
[1756519177149,1.44636056,107550.0,107540.0,0.11796668]
[1756519177150,1.16548056,107550.0,107540.0,0.11796668]
[1756519177368,0.81635516,107550.0,107540.0,0.11796668]
[1756519177551,1.33115251,107550.0,107540.0,0.11796668]
[1756519177701,1.72682788,107550.0,107540.0,0.11796668]
[1756519177903,1.71488825,107550.0,107540.0,0.11796668]
[1756519178127,0.82586971,107550.0,107540.0,0.11796668]
[1756519178295,0.61897088,107550.0,107540.0,0.11796668]
[1756519178509,0.18615536,107550.0,107540.0,1.10297136]
[1756519178731,0.18615536,107550.0,107540.0,0.402214]
[1756519178942,0.18615536,107550.0,107540.0,0.12325668]
[1756519179151,0.18615536,107550.0,107540.0,0.30923399]
[1756519179350,0.71211537,107550.0,107540.0,0.12410668]
[1756519179549,0.71211537,107550.0,107540.0,0.12096668]
[1756519179550,0.61913537,107550.0,107540.0,0.12096668]
[1756519179756,0.52615536,107550.0,107540.0,0.11796668]
[1756519179951,0.18615536,107550.0,107540.0,1.00999135]
[1756519180150,0.18715536,107550.0,107540.0,0.31723399]
[1756519180397,0.18715536,107550.0,107540.0,0.12910668]
[1756519180603,0.18715536,107550.0,107540.0,0.31508399]
[1756519180803,0.18615536,107550.0,107540.0,1.00999135]
[1756519181086,0.18615536,107550.0,107540.0,1.10297136]
[1756519181286,0.17415536,107550.0,107540.0,1.69035018]
[1756519181490,0.00147536,107550.0,107540.0,1.94467018]
[1756519181700,0.26580704,107610.0,107590.0,0.18589088]
[1756519181701,0.07696007,107610.0,107590.0,0.18589088]
[1756519181916,0.07696007,107610.0,107600.0,0.88663096]
[1756519182121,0.07696007,107610.0,107600.0,0.70075736]
[1756519182366,0.07696007,107610.0,107580.0,0.70075736]
[1756519182367,0.18587368,107600.0,107580.0,0.70075736]
[1756519182577,0.19333343,107590.0,107570.0,0.70075736]
[1756519182780,0.00231727,107580.0,107570.0,0.88668216]
[1756519182991,0.18592544,107570.0,107540.0,0.30387598]
[1756519183193,0.001,107550.0,107540.0,0.82472404]
[1756519183394,0.001,107550.0,107540.0,1.01070135]
[1756519183395,0.00331727,107550.0,107540.0,1.01070135]
[1756519183615,0.53339728,107550.0,107540.0,0.11810985]
[1756519183813,0.53108001,107550.0,107540.0,0.11810985]
[1756519184013,0.39426278,107560.0,107540.0,1.00484452]
[1756519184215,0.00231727,107550.0,107540.0,0.11810985]
[1756519184424,0.00231727,107550.0,107540.0,0.30408716]
[1756519184596,0.6196,107570.0,107550.0,0.18596001]
[1756519184816,0.8085155,107570.0,107550.0,0.18596001]
[1756519185025,0.9848003,107560.0,107540.0,0.11810985]
[1756519185194,0.9848003,107560.0,107540.0,0.30408716]
[1756519185195,0.00299,107550.0,107540.0,0.30408716]
[1756519185385,0.48987294,107560.0,107540.0,0.11810985]
[1756519185770,0.19108001,107550.0,107540.0,0.11810985]
[1756519185888,1.32481738,107550.0,107540.0,0.12210985]
[1756519186535,1.32481738,107550.0,107540.0,0.30408716]
[1756519186536,0.34512,107550.0,107540.0,0.30408716]
[1756519186741,0.26666177,107570.0,107550.0,0.18596001]
[1756519186742,0.55103,107570.0,107550.0,0.18596001]
[1756519186944,0.34231727,107560.0,107550.0,0.18596001]
[1756519187091,0.34,107560.0,107550.0,0.18596001]
[1756519187299,0.34512,107560.0,107550.0,0.18596001]
[1756519187519,0.42191537,107570.0,107560.0,0.18594272]
[1756519187520,0.20804,107570.0,107560.0,0.18594272]
[1756519187758,0.70374736,107580.0,107560.0,0.18594272]
[1756519187961,0.00231727,107570.0,107560.0,0.18594272]
[1756519188165,0.77522736,107610.0,107590.0,0.18588513]
[1756519188362,0.77522736,107610.0,107570.0,0.18591132]
[1756519188363,0.18589252,107590.0,107570.0,0.2096]
[1756519188564,0.03026427,107580.0,107570.0,0.18592538]
[1756519188831,0.00231727,107590.0,107580.0,0.18590816]
[1756519188996,0.02794,107610.0,107600.0,0.1858736]
[1756519189392,0.0721143,107620.0,107600.0,0.1858736]
[1756519189597,0.2858043,107620.0,107600.0,0.1858736]
[1756519189803,0.47164539,107620.0,107600.0,0.1858736]
[1756519190028,0.39953109,107620.0,107600.0,0.1858736]
[1756519190228,0.99528634,107630.0,107610.0,0.18585633]
[1756519190229,0.099416,107630.0,107610.0,0.18585633]
[1756519190438,0.00301,107630.0,107610.0,0.18585633]
[1756519190587,0.2137387,107640.0,107620.0,0.18583906]
[1756519190755,0.00499,107630.0,107600.0,0.18587302]
[1756519190972,0.00301,107620.0,107610.0,0.18585549]
[1756519191172,0.00301,107620.0,107610.0,0.18585633]
[1756519191596,0.19567626,107620.0,107600.0,0.30706001]
[1756519191805,0.00231727,107610.0,107600.0,0.40009654]
[1756519192002,0.00231727,107610.0,107600.0,0.00314317]
[1756519192003,0.1931636,107610.0,107600.0,0.00314317]
[1756519192175,0.89160369,107610.0,107600.0,0.00014317]
[1756519192770,0.40240633,107610.0,107600.0,0.00014317]
[1756519192971,0.07632577,107620.0,107600.0,0.18601677]
[1756519193199,0.00231727,107610.0,107600.0,0.18601677]
[1756519194811,0.00231727,107610.0,107600.0,0.39833677]
[1756519194983,0.00716304,107620.0,107610.0,0.18585633]
[1756519196159,0.00716304,107620.0,107610.0,0.27883634]
[1756519196364,0.00484577,107620.0,107610.0,0.27883634]
[1756519196570,0.19068483,107620.0,107610.0,0.21428]
[1756519196770,0.19567483,107620.0,107610.0,0.002]
[1756519197262,0.00484577,107620.0,107610.0,0.18785633]
[1756519197476,0.00484577,107620.0,107610.0,0.40021633]
[1756519197685,0.00484577,107620.0,107610.0,0.40013633]
[1756519197890,0.00716304,107620.0,107610.0,0.18785633]
[1756519198090,0.00716304,107620.0,107610.0,0.40009633]
[1756519198492,0.00716304,107620.0,107610.0,0.39989633]
[1756519199304,0.00484577,107620.0,107610.0,0.39989633]
[1756519199628,0.00716304,107620.0,107610.0,0.21404]
[1756519199847,0.00716304,107620.0,107610.0,0.39989633]
[1756519200281,0.00716304,107620.0,107610.0,0.49287634]
[1756519200488,0.00484577,107620.0,107610.0,0.49287634]
[1756519200689,0.00484577,107620.0,107610.0,1.1936337]
[1756519201306,0.00484577,107620.0,107610.0,0.49307634]
[1756519201526,0.00484577,107620.0,107610.0,1.41477252]
[1756519201725,1e-08,107620.0,107610.0,0.89177516]
[1756519201959,1e-08,107620.0,107610.0,1.84929252]
[1756519202502,1e-08,107620.0,107610.0,1.80229252]
[1756519202714,1e-08,107620.0,107610.0,1.90229252]
[1756519202930,1e-08,107620.0,107610.0,0.98873516]
[1756519203125,1e-08,107620.0,107610.0,1.89933252]
[1756519203426,1e-08,107620.0,107610.0,1.96508293]
[1756519203653,1e-08,107620.0,107610.0,1.97108293]
[1756519204018,1e-08,107620.0,107610.0,1.75824293]
[1756519204226,1e-08,107620.0,107610.0,1.97144293]
[1756519204690,1e-08,107620.0,107610.0,1.97136293]
[1756519204851,1e-08,107620.0,107610.0,2.16053668]
[1756519205104,1e-08,107620.0,107610.0,2.08878627]
[1756519205438,0.0721143,107660.0,107650.0,0.84934634]
[1756519205552,0.0471143,107680.0,107670.0,0.88651012]
[1756519205770,0.0471143,107680.0,107670.0,1.19269013]
[1756519205982,0.0521043,107680.0,107670.0,0.27873277]
[1756519206224,0.05442157,107680.0,107670.0,0.49205277]
[1756519206450,0.24015708,107680.0,107670.0,0.21328]
[1756519206654,0.93907391,107680.0,107650.0,0.25722181]
[1756519206885,0.18577001,107660.0,107650.0,0.28492]
[1756519207176,0.18876312,107670.0,107650.0,0.47070602]
[1756519207398,0.00499,107660.0,107650.0,0.28492]
[1756519207818,0.00499,107660.0,107650.0,0.47070727]
[1756519208386,0.00301,107680.0,107660.0,0.18575813]
[1756519208597,0.19500551,107690.0,107670.0,0.39935276]
[1756519208823,0.00429727,107680.0,107670.0,0.39982871]
[1756519209008,0.19003278,107680.0,107670.0,0.00047595]
[1756519209213,1.22847287,107680.0,107670.0,0.00047595]
[1756519209383,1.22847287,107680.0,107590.0,0.47054225]
[1756519209384,0.19513101,107620.0,107590.0,0.47054225]
[1756519209607,0.1878536,107600.0,107580.0,0.07144]
[1756519210010,0.00231727,107590.0,107580.0,0.07144]
[1756519210240,0.00231727,107590.0,107580.0,0.47554816]
[1756519210487,0.00231727,107590.0,107580.0,1.17630552]
[1756519210719,0.00301,107610.0,107590.0,0.18588982]
[1756519210942,0.00532727,107610.0,107590.0,0.18588982]
[1756519211198,0.00532727,107610.0,107600.0,0.1858736]
[1756519211425,0.00301,107630.0,107610.0,0.18585118]
[1756519211661,0.00301,107650.0,107630.0,0.18582179]
[1756519211866,0.19079794,107640.0,107620.0,0.38462001]
[1756519212070,0.00301,107630.0,107620.0,0.38462001]
[1756519212243,0.00301,107630.0,107620.0,0.57045907]
[1756519212990,0.00301,107630.0,107620.0,0.57060224]
[1756519213214,0.18583906,107620.0,107610.0,0.009]
[1756519213432,0.89158642,107620.0,107610.0,0.00914301]
[1756519213883,0.19082906,107620.0,107610.0,0.00914301]
[1756519214109,0.00301,107620.0,107610.0,0.00014301]
[1756519214329,0.19314633,107620.0,107610.0,0.00014301]
[1756519214554,0.89158642,107620.0,107610.0,0.00014301]
[1756519214994,1.32456643,107620.0,107610.0,0.00014301]
[1756519215203,1.32747521,107620.0,107610.0,0.00014301]
[1756519215400,1.32747528,107620.0,107610.0,0.00014301]
[1756519216017,0.53373791,107620.0,107610.0,0.00014301]
[1756519216218,0.53373771,107620.0,107610.0,0.00014301]
[1756519216636,1.23449508,107620.0,107610.0,0.00014301]
[1756519217111,1.32747509,107620.0,107610.0,0.00014301]
[1756519218941,1.23449508,107620.0,107610.0,0.00014301]
[1756519219173,0.62380907,107620.0,107610.0,0.00014301]
[1756519219387,1.32456643,107620.0,107610.0,0.00014301]
[1756519219810,1.32456643,107620.0,107590.0,0.07144]
[1756519219811,0.1858736,107600.0,107590.0,0.07144]
[1756519220064,0.1910736,107600.0,107590.0,0.07144]
[1756519220701,0.1858736,107600.0,107590.0,0.0719]
[1756519220915,0.1890436,107600.0,107590.0,0.16442001]
[1756519221192,0.1910736,107600.0,107590.0,0.16442001]
[1756519221391,0.89183096,107600.0,107590.0,0.29356]
[1756519221614,0.1910736,107600.0,107590.0,0.29356]
[1756519221829,0.19591937,107600.0,107590.0,0.29356]
[1756519222726,0.19591937,107600.0,107590.0,0.29556]
[1756519222988,0.19591937,107600.0,107540.0,0.11796668]
[1756519222989,0.18596001,107550.0,107540.0,0.11796668]
[1756519223196,0.18596001,107550.0,107540.0,0.41343668]
[1756519223403,0.18596001,107550.0,107540.0,0.41128668]
[1756519224249,0.18911272,107560.0,107540.0,0.59726399]
[1756519224456,0.00245978,107550.0,107540.0,0.59726399]
[1756519224676,0.00014251,107550.0,107540.0,1.39544136]
[1756519224946,0.1858918,107590.0,107570.0,0.18591124]
[1756519225166,0.1858918,107590.0,107580.0,0.22388]
[1756519225433,0.18589088,107590.0,107580.0,0.41193731]
[1756519225685,0.18589088,107590.0,107560.0,0.18594139]
[1756519225686,0.18590828,107580.0,107560.0,0.18594139]
[1756519225891,0.20015624,107600.0,107580.0,0.18590816]
[1756519226118,0.18590816,107580.0,107570.0,0.31718001]
[1756519226345,0.18907816,107580.0,107570.0,0.31718001]
[1756519226782,0.19110816,107580.0,107570.0,0.22444]
[1756519226988,0.18589088,107590.0,107570.0,0.41251544]
[1756519227189,0.18589088,107590.0,107570.0,0.50549545]
[1756519227190,0.00231727,107580.0,107570.0,0.50549545]
[1756519227396,0.18822543,107580.0,107570.0,0.31957001]
[1756519227595,0.18906088,107590.0,107570.0,0.50334545]
[1756519227810,0.00231727,107580.0,107570.0,0.50334545]
[1756519228090,0.00317,107590.0,107580.0,0.18590677]
[1756519228091,0.00231727,107590.0,107580.0,0.18590677]
[1756519228504,0.00231727,107590.0,107580.0,0.18805677]
[1756519228710,0.00231727,107590.0,107580.0,0.35251678]
[1756519228913,0.19086256,107600.0,107590.0,0.18589088]
[1756519229122,0.19086256,107600.0,107590.0,0.41013088]
[1756519229341,0.18589088,107590.0,107580.0,0.16446001]
[1756519229560,0.19109088,107590.0,107580.0,0.57460817]
[1756519229752,0.19109088,107590.0,107580.0,0.07148]
[1756519229961,0.89184824,107590.0,107580.0,0.07148]
[1756519230178,0.89184824,107590.0,107580.0,0.2958]
[1756519230994,0.19086256,107600.0,107580.0,0.48170816]
[1756519231202,0.19086256,107600.0,107580.0,0.57683817]
[1756519231628,0.18589088,107590.0,107580.0,0.38878001]
[1756519231846,0.00815896,107600.0,107590.0,0.18589088]
[1756519232067,0.00498896,107600.0,107590.0,0.18804088]
[1756519232278,0.00498896,107600.0,107590.0,0.18304088]
[1756519232487,0.00498896,107600.0,107590.0,0.27602089]
[1756519232699,0.00014319,107600.0,107590.0,0.27602089]
[1756519233324,0.00014319,107600.0,107590.0,0.97891825]
[1756519233739,0.00014319,107600.0,107590.0,0.27816089]
[1756519233949,0.00014319,107600.0,107590.0,0.27602089]
[1756519235381,0.18601679,107600.0,107590.0,0.22396]
[1756519235585,0.19121679,107600.0,107590.0,0.22396]
[1756519235988,0.19121679,107600.0,107590.0,0.22392]
[1756519236327,0.19121679,107600.0,107580.0,0.25738816]
[1756519236534,0.19137815,107590.0,107580.0,0.16446001]
[1756519236882,0.19109088,107590.0,107580.0,0.57388817]
[1756519237210,0.19109088,107590.0,107580.0,0.16446001]
[1756519237627,0.19109088,107590.0,107580.0,0.2948]
[1756519237748,0.19109088,107590.0,107580.0,0.07148]
[1756519237970,0.19109088,107590.0,107580.0,0.2946]
[1756519238600,0.19109088,107590.0,107580.0,0.07148]
[1756519238779,0.1859116,107580.0,107560.0,0.26671934]
[1756519238985,0.18589088,107590.0,107570.0,0.41079544]
[1756519239238,0.01707592,107590.0,107580.0,0.18590816]
[1756519239382,0.19848047,107600.0,107590.0,0.18589088]
[1756519239383,0.00014319,107600.0,107590.0,0.18589088]
[1756519239585,0.00014319,107600.0,107590.0,0.41096088]
[1756519240031,0.00246046,107600.0,107590.0,0.41096088]
[1756519240671,0.00014319,107600.0,107590.0,0.50394089]
[1756519241498,0.00246046,107600.0,107590.0,0.50394089]
[1756519241706,0.00014319,107600.0,107590.0,0.50394089]
[1756519241911,0.00246046,107600.0,107590.0,0.50394089]
[1756519242443,0.18833406,107600.0,107590.0,0.09298001]
[1756519242646,0.19121679,107600.0,107590.0,0.09298001]
[1756519242846,0.19121679,107600.0,107590.0,0.31498001]
[1756519243064,0.19121679,107600.0,107590.0,0.50087089]
[1756519243266,0.00534319,107600.0,107590.0,0.50087089]
[1756519243505,0.00246046,107600.0,107590.0,0.50087089]
[1756519244950,0.00246046,107600.0,107590.0,0.50402089]
[1756519245164,0.00014319,107600.0,107590.0,1.20691825]
[1756519245370,0.00014319,107600.0,107590.0,1.27839825]
[1756519245539,0.00014319,107600.0,107590.0,1.05425825]
[1756519245743,0.00014319,107600.0,107590.0,1.27549825]
[1756519246364,0.00014319,107600.0,107590.0,1.27763825]
[1756519247675,0.00014319,107600.0,107590.0,1.47763825]
[1756519248667,0.00014319,107600.0,107590.0,0.77374089]
[1756519248875,0.00014319,107600.0,107590.0,1.47449825]
[1756519249081,0.00014319,107600.0,107590.0,1.47663825]
[1756519249298,0.00014319,107600.0,107590.0,1.47863825]
[1756519250334,0.00014319,107600.0,107590.0,1.47663825]
[1756519250618,0.00014319,107600.0,107590.0,1.49757707]
[1756519250820,0.00498896,107600.0,107590.0,1.56599052]
[1756519250966,0.00498896,107600.0,107590.0,0.91269316]
[1756519251170,0.00498896,107600.0,107590.0,1.61345052]
[1756519251171,0.00014319,107600.0,107590.0,1.61345052]
[1756519252230,0.00014319,107600.0,107590.0,1.61145052]
[1756519252554,0.00231727,107640.0,107630.0,0.18582179]
[1756519252796,0.00558041,107640.0,107630.0,0.40550179]
[1756519252967,0.00754041,107640.0,107630.0,0.40550179]
[1756519253170,0.00754041,107640.0,107630.0,0.4984818]
[1756519253377,0.00210314,107640.0,107630.0,0.4984818]
[1756519253619,0.00522314,107640.0,107630.0,0.2788018]
[1756519253814,0.00754041,107640.0,107630.0,0.4983618]
[1756519254382,0.00442041,107640.0,107630.0,0.4983618]
[1756519254558,0.00210314,107640.0,107630.0,0.4983618]
[1756519254942,0.00014314,107640.0,107630.0,0.4983618]
[1756519255145,0.00014314,107640.0,107630.0,0.2788018]
[1756519255315,0.00522314,107640.0,107630.0,0.4980418]
[1756519255509,0.00522314,107640.0,107630.0,0.2808018]
[1756519255768,0.00522314,107640.0,107630.0,0.4998818]
[1756519256561,0.00210314,107640.0,107630.0,0.4998818]
[1756519257097,0.00014314,107640.0,107630.0,0.5020118]
[1756519257302,0.00442041,107640.0,107630.0,0.2808018]
[1756519257512,0.00754041,107640.0,107630.0,0.4998418]
[1756519257712,0.00442041,107640.0,107630.0,0.4998418]
[1756519258170,0.00754041,107640.0,107630.0,0.4998418]
[1756519258577,0.19334494,107640.0,107630.0,0.002]
[1756519258772,0.19102767,107640.0,107630.0,0.18782179]
[1756519259455,0.19102767,107640.0,107630.0,0.002]
[1756519259660,0.19102767,107640.0,107620.0,0.4760646]
[1756519259872,0.19102767,107640.0,107630.0,0.18582179]
[1756519260071,0.19102767,107640.0,107630.0,0.18682179]
[1756519260289,0.00210314,107640.0,107630.0,0.18682179]
[1756519260493,0.00014314,107640.0,107630.0,0.18895179]
[1756519260624,0.00014314,107640.0,107630.0,0.98168916]
[1756519260831,0.00014314,107640.0,107630.0,1.20476798]
[1756519261278,1e-08,107640.0,107630.0,1.20476798]
[1756519261439,1e-08,107640.0,107630.0,1.66118143]
[1756519261643,1e-08,107640.0,107630.0,1.70864143]
[1756519261843,1e-08,107640.0,107630.0,1.92708143]